[Event "Titled Tuesday Blitz July 25 Early 2023"]
[White "Onufrienko, Vladislav"]
[Black "Topalov, Aleksandar"]
[WhiteFideId "13804332"]
[BlackFideId "925659"]
[WhiteElo "2481"]
[BlackElo "2376"]
[Result "1-0"]
[Round "9"]
[TimeControl "180+2"]
[Date "2023.07.25"]
[WhiteClock "0:00:12"]
[BlackClock "0:00:08"]
[Board "122"]

1. g4 {[%clk 0:03:00]}  d5 {[%clk 0:02:55]} 2. Bg2 {[%clk 0:02:59]}  c6 {[%clk 0:02:55]} 3. c4 {[%clk 0:02:59]}  dxc4 {[%clk 0:02:54]} 4. g5 {[%clk 0:02:56]}  e5 {[%clk 0:02:46]} 5. h4 {[%clk 0:02:54]}  h6 {[%clk 0:02:31]} 6. d3 {[%clk 0:02:40]}  cxd3 {[%clk 0:02:26]} 7. Nc3 {[%clk 0:02:35]}  Bf5 {[%clk 0:02:13]} 8. Qb3 {[%clk 0:02:28]}  Qb6 {[%clk 0:02:11]} 9. Qa4 {[%clk 0:02:15]}  dxe2 {[%clk 0:02:02]} 10. Ngxe2 {[%clk 0:02:13]}  Bc5 {[%clk 0:02:00]} 11. Rf1 {[%clk 0:02:01]}  hxg5 {[%clk 0:01:58]} 12. Bxg5 {[%clk 0:01:59]}  Ne7 {[%clk 0:01:43]} 13. O-O-O {[%clk 0:01:54]}  f6 {[%clk 0:01:37]} 14. Ng3 {[%clk 0:01:38]}  Be6 {[%clk 0:01:02]} 15. Bd2 {[%clk 0:01:26]}  Nd7 {[%clk 0:00:55]} 16. Nge4 {[%clk 0:01:25]}  Nd5 {[%clk 0:00:36]} 17. Qc2 {[%clk 0:01:01]}  Nxc3 {[%clk 0:00:24]} 18. Bxc3 {[%clk 0:01:01]}  O-O-O {[%clk 0:00:20]} 19. Kb1 {[%clk 0:00:54]}  Nb8 {[%clk 0:00:18]} 20. Rde1 {[%clk 0:00:42]}  Bd4 {[%clk 0:00:18]} 21. f4 {[%clk 0:00:39]}  Na6 {[%clk 0:00:14]} 22. fxe5 {[%clk 0:00:37]}  fxe5 {[%clk 0:00:14]} 23. Ng5 {[%clk 0:00:38]}  Bc4 {[%clk 0:00:11]} 24. Rf7 {[%clk 0:00:20]}  Bxf7 {[%clk 0:00:10]} 25. Nxf7 {[%clk 0:00:21]}  Nb4 {[%clk 0:00:10]} 26. Qf5+ {[%clk 0:00:19]}  Kb8 {[%clk 0:00:10]} 27. Bxd4 {[%clk 0:00:15]}  exd4 {[%clk 0:00:09]} 28. Nxh8 {[%clk 0:00:14]}  Rxh8 {[%clk 0:00:09]} 29. Qe5+ {[%clk 0:00:14]}  Kc8 {[%clk 0:00:08]} 30. Bh3+ {[%clk 0:00:13]}  Kd8 {[%clk 0:00:08]} 31. Qd6# {[%clk 0:00:12]} 1-0


[Site "https://www.chess.com"]

[Event "Titled Tuesday Blitz July 25 Early 2023"]
[White "Al Mukhaini, Shima"]
[Black "NicolaiMaxime"]
[WhiteFideId "22005854"]
[WhiteElo "2406"]
[BlackElo "2579"]
[Result "0-1"]
[Round "9"]
[TimeControl "180+2"]
[Date "2023.07.25"]
[WhiteClock "0:00:00"]
[BlackClock "0:00:17"]
[Board "126"]

1. b3 {[%clk 0:03:00]}  e5 {[%clk 0:02:58]} 2. Bb2 {[%clk 0:03:01]}  Nc6 {[%clk 0:02:52]} 3. e3 {[%clk 0:03:02]}  Bc5 {[%clk 0:02:50]} 4. d4 {[%clk 0:03:01]}  exd4 {[%clk 0:02:48]} 5. exd4 {[%clk 0:03:02]}  Qe7+ {[%clk 0:02:48]} 6. Be2 {[%clk 0:02:58]}  Bb6 {[%clk 0:02:47]} 7. Nf3 {[%clk 0:02:53]}  Nf6 {[%clk 0:02:46]} 8. d5 {[%clk 0:02:47]}  Nb4 {[%clk 0:02:46]} 9. c4 {[%clk 0:02:46]}  O-O {[%clk 0:02:12]} 10. a3 {[%clk 0:02:43]}  Na6 {[%clk 0:02:11]} 11. b4 {[%clk 0:02:43]}  d6 {[%clk 0:02:09]} 12. O-O {[%clk 0:02:41]}  c6 {[%clk 0:02:08]} 13. dxc6 {[%clk 0:02:31]}  bxc6 {[%clk 0:02:08]} 14. Nc3 {[%clk 0:02:21]}  Nc7 {[%clk 0:02:07]} 15. Re1 {[%clk 0:02:20]}  Be6 {[%clk 0:02:06]} 16. h3 {[%clk 0:02:17]}  h6 {[%clk 0:02:05]} 17. Nd4 {[%clk 0:02:17]}  c5 {[%clk 0:02:00]} 18. Nxe6 {[%clk 0:02:11]}  Nxe6 {[%clk 0:02:01]} 19. Bf3 {[%clk 0:01:49]}  Rae8 {[%clk 0:01:57]} 20. Bc6 {[%clk 0:01:46]}  Rc8 {[%clk 0:01:55]} 21. Nd5 {[%clk 0:01:43]}  Nxd5 {[%clk 0:01:30]} 22. cxd5 {[%clk 0:01:42]}  cxb4 {[%clk 0:01:17]} 23. axb4 {[%clk 0:01:40]}  Qh4 {[%clk 0:01:17]} 24. Qd2 {[%clk 0:01:19]}  Nf4 {[%clk 0:01:02]} 25. Ra3 {[%clk 0:01:12]}  Qg5 {[%clk 0:00:50]} 26. Qxf4 {[%clk 0:00:29]}  Qxf4 {[%clk 0:00:47]} 27. Rf3 {[%clk 0:00:22]}  Qd2 {[%clk 0:00:42]} 28. Bc3 {[%clk 0:00:21]}  Qg5 {[%clk 0:00:38]} 29. Re4 {[%clk 0:00:20]}  h5 {[%clk 0:00:31]} 30. Kh2 {[%clk 0:00:18]}  Qg6 {[%clk 0:00:30]} 31. Rg3 {[%clk 0:00:16]}  Qh6 {[%clk 0:00:25]} 32. Re7 {[%clk 0:00:08]}  f6 {[%clk 0:00:21]} 33. Bd2 {[%clk 0:00:04]}  Qh7 {[%clk 0:00:19]} 34. Rf3 {[%clk 0:00:02]}  Rf7 {[%clk 0:00:19]} 35. Re6 {[%clk 0:00:02]}  Qg6 {[%clk 0:00:18]} 36. b5 {[%clk 0:00:02]}  Bd4 {[%clk 0:00:18]} 37. g3 {[%clk 0:00:02]}  Be5 {[%clk 0:00:18]} 38. Kg2 {[%clk 0:00:03]}  h4 {[%clk 0:00:17]} 39. g4 {[%clk 0:00:02]}  Qe4 {[%clk 0:00:17]} 40. Be3 {[%clk 0:00:00]}  f5 {[%clk 0:00:17]} 0-1


[Site "https://www.chess.com"]

[Event "Titled Tuesday Blitz July 25 Early 2023"]
[White "Kochiev, Ivan"]
[Black "Rios Escobar, Adan"]
[WhiteFideId "2917890"]
[BlackFideId "3403645"]
[WhiteElo "2530"]
[BlackElo "2402"]
[Result "0-1"]
[Round "9"]
[TimeControl "180+2"]
[Date "2023.07.25"]
[WhiteClock "0:00:01"]
[BlackClock "0:01:18"]
[Board "127"]

1. e4 {[%clk 0:02:52]}  c5 {[%clk 0:02:59]} 2. Nf3 {[%clk 0:02:52]}  d6 {[%clk 0:02:59]} 3. d4 {[%clk 0:02:51]}  cxd4 {[%clk 0:03:00]} 4. Nxd4 {[%clk 0:02:48]}  Nf6 {[%clk 0:03:00]} 5. f3 {[%clk 0:02:49]}  e5 {[%clk 0:02:48]} 6. Nb3 {[%clk 0:02:48]}  a5 {[%clk 0:02:48]} 7. a4 {[%clk 0:02:44]}  d5 {[%clk 0:02:46]} 8. Bg5 {[%clk 0:02:44]}  d4 {[%clk 0:02:43]} 9. c3 {[%clk 0:02:44]}  Nc6 {[%clk 0:02:41]} 10. Bb5 {[%clk 0:02:43]}  h6 {[%clk 0:02:35]} 11. Bxf6 {[%clk 0:02:43]}  Qxf6 {[%clk 0:02:35]} 12. cxd4 {[%clk 0:02:44]}  Bb4+ {[%clk 0:02:34]} 13. Nc3 {[%clk 0:02:44]}  Qh4+ {[%clk 0:02:15]} 14. g3 {[%clk 0:02:43]}  Qh3 {[%clk 0:02:10]} 15. Qe2 {[%clk 0:01:53]}  O-O {[%clk 0:02:01]} 16. Bxc6 {[%clk 0:01:23]}  bxc6 {[%clk 0:02:02]} 17. Kf2 {[%clk 0:00:56]}  Ba6 {[%clk 0:01:53]} 18. Qe3 {[%clk 0:00:52]}  exd4 {[%clk 0:01:51]} 19. Nxd4 {[%clk 0:00:50]}  Bc5 {[%clk 0:01:48]} 20. Rad1 {[%clk 0:00:50]}  Rfd8 {[%clk 0:01:47]} 21. e5 {[%clk 0:00:31]}  Rab8 {[%clk 0:01:44]} 22. b3 {[%clk 0:00:16]}  Rb4 {[%clk 0:01:41]} 23. Nce2 {[%clk 0:00:06]}  Bxe2 {[%clk 0:01:38]} 24. Kxe2 {[%clk 0:00:01]}  Rbxd4 {[%clk 0:01:36]} 25. Rxd4 {[%clk 0:00:01]}  Bxd4 {[%clk 0:01:22]} 26. Qd2 {[%clk 0:00:01]}  Qg2+ {[%clk 0:01:18]} 27. Kd1 {[%clk 0:00:01]} 0-1


[Site "https://www.chess.com"]

[Event "Titled Tuesday Blitz July 25 Early 2023"]
[White "Chor, Kevin"]
[Black "Ramirez Vido, Robert Yorisan"]
[WhiteFideId "2090740"]
[BlackFideId "3513823"]
[WhiteElo "2509"]
[BlackElo "2384"]
[Result "1-0"]
[Round "9"]
[TimeControl "180+2"]
[Date "2023.07.25"]
[WhiteClock "0:00:20"]
[BlackClock "0:00:00"]
[Board "129"]

1. e4 {[%clk 0:03:00]}  d6 {[%clk 0:02:33]} 2. d4 {[%clk 0:03:00]}  Nf6 {[%clk 0:02:26]} 3. Nc3 {[%clk 0:03:00]}  g6 {[%clk 0:02:25]} 4. f4 {[%clk 0:03:00]}  Bg7 {[%clk 0:02:25]} 5. Nf3 {[%clk 0:03:00]}  c5 {[%clk 0:02:26]} 6. dxc5 {[%clk 0:02:50]}  Qa5 {[%clk 0:02:23]} 7. Bd2 {[%clk 0:02:47]}  Qxc5 {[%clk 0:02:20]} 8. Qe2 {[%clk 0:02:47]}  O-O {[%clk 0:02:16]} 9. O-O-O {[%clk 0:02:46]}  Nc6 {[%clk 0:02:11]} 10. Kb1 {[%clk 0:02:42]}  Bg4 {[%clk 0:02:10]} 11. Be3 {[%clk 0:02:34]}  Qa5 {[%clk 0:02:10]} 12. h3 {[%clk 0:02:27]}  Be6 {[%clk 0:02:07]} 13. a3 {[%clk 0:02:10]}  Nh5 {[%clk 0:02:04]} 14. Qd2 {[%clk 0:01:54]}  Bxc3 {[%clk 0:01:57]} 15. Qxc3 {[%clk 0:01:53]}  Qxc3 {[%clk 0:01:56]} 16. bxc3 {[%clk 0:01:54]}  Ng3 {[%clk 0:01:56]} 17. Rg1 {[%clk 0:01:52]}  Nxe4 {[%clk 0:01:57]} 18. Kb2 {[%clk 0:01:50]}  Na5 {[%clk 0:01:44]} 19. Rd4 {[%clk 0:01:43]}  f5 {[%clk 0:01:30]} 20. Bd3 {[%clk 0:01:38]}  Nc6 {[%clk 0:01:13]} 21. Bxe4 {[%clk 0:01:31]}  fxe4 {[%clk 0:01:07]} 22. Rxe4 {[%clk 0:01:31]}  Bd5 {[%clk 0:01:01]} 23. Ra4 {[%clk 0:01:31]}  b5 {[%clk 0:00:48]} 24. Ra6 {[%clk 0:01:22]}  Rfc8 {[%clk 0:00:31]} 25. Rd1 {[%clk 0:01:20]}  Bc4 {[%clk 0:00:26]} 26. Nd2 {[%clk 0:01:10]}  Bd5 {[%clk 0:00:16]} 27. Nf3 {[%clk 0:01:02]}  Bc4 {[%clk 0:00:12]} 28. Nd2 {[%clk 0:00:46]}  Bd5 {[%clk 0:00:12]} 29. g4 {[%clk 0:00:46]}  Bg2 {[%clk 0:00:10]} 30. h4 {[%clk 0:00:41]}  Bh3 {[%clk 0:00:09]} 31. Rg1 {[%clk 0:00:39]}  h5 {[%clk 0:00:03]} 32. gxh5 {[%clk 0:00:38]}  Bf5 {[%clk 0:00:03]} 33. Nb3 {[%clk 0:00:25]}  Kf7 {[%clk 0:00:02]} 34. hxg6+ {[%clk 0:00:21]}  Bxg6 {[%clk 0:00:03]} 35. Nd4 {[%clk 0:00:20]}  Nxd4 {[%clk 0:00:02]} 36. Bxd4 {[%clk 0:00:21]}  b4 {[%clk 0:00:00]} 37. axb4 {[%clk 0:00:20]} 1-0


[Site "https://www.chess.com"]

[Event "Titled Tuesday Blitz July 25 Early 2023"]
[White "Qiao, Cindy"]
[Black "Bilan, Danila"]
[WhiteFideId "2620243"]
[BlackFideId "24161918"]
[WhiteElo "2375"]
[BlackElo "2503"]
[Result "0-1"]
[Round "9"]
[TimeControl "180+2"]
[Date "2023.07.25"]
[WhiteClock "0:00:36"]
[BlackClock "0:00:07"]
[Board "130"]

1. d4 {[%clk 0:03:00]}  d5 {[%clk 0:02:57]} 2. Bf4 {[%clk 0:03:00]}  Nf6 {[%clk 0:02:57]} 3. e3 {[%clk 0:03:00]}  c5 {[%clk 0:02:57]} 4. Nf3 {[%clk 0:03:00]}  Nc6 {[%clk 0:02:58]} 5. Nbd2 {[%clk 0:03:00]}  Qb6 {[%clk 0:02:57]} 6. dxc5 {[%clk 0:02:59]}  Qxc5 {[%clk 0:02:57]} 7. a3 {[%clk 0:02:53]}  Bg4 {[%clk 0:02:55]} 8. b4 {[%clk 0:02:40]}  Qb6 {[%clk 0:02:54]} 9. h3 {[%clk 0:02:32]}  Bh5 {[%clk 0:02:52]} 10. c4 {[%clk 0:02:30]}  e6 {[%clk 0:01:34]} 11. Be2 {[%clk 0:02:16]}  Be7 {[%clk 0:01:28]} 12. O-O {[%clk 0:02:15]}  O-O {[%clk 0:01:25]} 13. Re1 {[%clk 0:02:03]}  Rac8 {[%clk 0:00:57]} 14. Rc1 {[%clk 0:01:59]}  a5 {[%clk 0:00:50]} 15. c5 {[%clk 0:01:55]}  Qa7 {[%clk 0:00:45]} 16. b5 {[%clk 0:01:43]}  Nb8 {[%clk 0:00:41]} 17. b6 {[%clk 0:01:35]}  Qa8 {[%clk 0:00:39]} 18. Bc7 {[%clk 0:01:31]}  Ne8 {[%clk 0:00:30]} 19. Bxb8 {[%clk 0:01:21]}  Qxb8 {[%clk 0:00:31]} 20. Nb3 {[%clk 0:01:21]}  a4 {[%clk 0:00:30]} 21. Nbd4 {[%clk 0:01:18]}  Bxc5 {[%clk 0:00:25]} 22. Rb1 {[%clk 0:01:18]}  Qa8 {[%clk 0:00:20]} 23. Nc2 {[%clk 0:01:12]}  Nd6 {[%clk 0:00:17]} 24. Ne5 {[%clk 0:01:10]}  Bxe2 {[%clk 0:00:15]} 25. Qxe2 {[%clk 0:01:11]}  Ne4 {[%clk 0:00:14]} 26. Qd3 {[%clk 0:01:06]}  Rfd8 {[%clk 0:00:11]} 27. Rec1 {[%clk 0:01:03]}  Qa5 {[%clk 0:00:10]} 28. Nd4 {[%clk 0:00:59]}  Bxd4 {[%clk 0:00:05]} 29. Qxd4 {[%clk 0:00:57]}  Nc3 {[%clk 0:00:05]} 30. Kh2 {[%clk 0:00:44]}  Nxb1 {[%clk 0:00:05]} 31. Rxb1 {[%clk 0:00:45]}  Qc3 {[%clk 0:00:05]} 32. Qf4 {[%clk 0:00:44]}  f6 {[%clk 0:00:04]} 33. Nf3 {[%clk 0:00:44]}  Rc4 {[%clk 0:00:04]} 34. Qg3 {[%clk 0:00:43]}  Qxa3 {[%clk 0:00:03]} 35. Rd1 {[%clk 0:00:40]}  Qd6 {[%clk 0:00:04]} 36. Nd4 {[%clk 0:00:39]}  Qxg3+ {[%clk 0:00:04]} 37. Kxg3 {[%clk 0:00:40]}  Rd6 {[%clk 0:00:04]} 38. Rb1 {[%clk 0:00:38]}  e5 {[%clk 0:00:05]} 39. Nf5 {[%clk 0:00:38]}  Rd7 {[%clk 0:00:04]} 40. Nh4 {[%clk 0:00:38]}  Kf7 {[%clk 0:00:04]} 41. Nf3 {[%clk 0:00:38]}  Ke6 {[%clk 0:00:04]} 42. Nd2 {[%clk 0:00:39]}  Rc2 {[%clk 0:00:04]} 43. Nf3 {[%clk 0:00:38]}  a3 {[%clk 0:00:05]} 44. Rb3 {[%clk 0:00:37]}  a2 {[%clk 0:00:05]} 45. Ra3 {[%clk 0:00:38]}  Rd6 {[%clk 0:00:06]} 46. Ne1 {[%clk 0:00:38]}  Rd2 {[%clk 0:00:06]} 47. Nf3 {[%clk 0:00:38]}  Rb2 {[%clk 0:00:07]} 48. Ne1 {[%clk 0:00:37]}  Rdxb6 {[%clk 0:00:07]} 49. Nd3 {[%clk 0:00:38]}  Rd2 {[%clk 0:00:07]} 50. Nc5+ {[%clk 0:00:38]}  Kd6 {[%clk 0:00:07]} 51. Na4 {[%clk 0:00:38]}  Ra6 {[%clk 0:00:07]} 52. f4 {[%clk 0:00:38]}  b5 {[%clk 0:00:07]} 53. Nc3 {[%clk 0:00:36]}  Rxa3 {[%clk 0:00:07]} 0-1


[Site "https://www.chess.com"]

[Event "Titled Tuesday Blitz July 25 Early 2023"]
[White "Gulamali, Kazim"]
[Black "Ncatt"]
[WhiteFideId "2024764"]
[WhiteElo "2480"]
[BlackElo "2336"]
[Result "1-0"]
[Round "9"]
[TimeControl "180+2"]
[Date "2023.07.25"]
[WhiteClock "0:00:15"]
[BlackClock "0:01:45"]
[Board "131"]

1. e4 {[%clk 0:02:57]}  c5 {[%clk 0:02:59]} 2. Nf3 {[%clk 0:02:58]}  Nc6 {[%clk 0:02:59]} 3. d4 {[%clk 0:02:58]}  cxd4 {[%clk 0:02:59]} 4. Nxd4 {[%clk 0:02:59]}  Nf6 {[%clk 0:03:00]} 5. Nc3 {[%clk 0:03:00]}  e6 {[%clk 0:03:00]} 6. a3 {[%clk 0:02:39]}  Be7 {[%clk 0:02:59]} 7. f4 {[%clk 0:02:31]}  d6 {[%clk 0:02:58]} 8. Be2 {[%clk 0:02:24]}  O-O {[%clk 0:02:56]} 9. Be3 {[%clk 0:02:22]}  a6 {[%clk 0:02:55]} 10. O-O {[%clk 0:01:56]}  Qc7 {[%clk 0:02:54]} 11. Qe1 {[%clk 0:01:45]}  Nxd4 {[%clk 0:02:52]} 12. Bxd4 {[%clk 0:01:44]}  e5 {[%clk 0:02:52]} 13. Be3 {[%clk 0:01:43]}  b5 {[%clk 0:02:50]} 14. Qg3 {[%clk 0:01:37]}  Bb7 {[%clk 0:02:50]} 15. fxe5 {[%clk 0:01:34]}  dxe5 {[%clk 0:02:49]} 16. Bh6 {[%clk 0:01:34]}  Qb6+ {[%clk 0:02:40]} 17. Be3 {[%clk 0:01:10]}  Qe6 {[%clk 0:02:37]} 18. Bf3 {[%clk 0:00:52]}  Rad8 {[%clk 0:02:34]} 19. Rad1 {[%clk 0:00:50]}  Rxd1 {[%clk 0:02:31]} 20. Rxd1 {[%clk 0:00:51]}  Rd8 {[%clk 0:02:31]} 21. Qe1 {[%clk 0:00:51]}  h6 {[%clk 0:02:28]} 22. Rd2 {[%clk 0:00:46]}  Rxd2 {[%clk 0:02:25]} 23. Qxd2 {[%clk 0:00:47]}  Qc4 {[%clk 0:02:25]} 24. Qd3 {[%clk 0:00:41]}  Qc7 {[%clk 0:02:23]} 25. Nd5 {[%clk 0:00:35]}  Nxd5 {[%clk 0:02:21]} 26. exd5 {[%clk 0:00:36]}  Bc5 {[%clk 0:02:21]} 27. c3 {[%clk 0:00:34]}  Bxe3+ {[%clk 0:02:17]} 28. Qxe3 {[%clk 0:00:35]}  Qd6 {[%clk 0:02:17]} 29. Qd3 {[%clk 0:00:26]}  g6 {[%clk 0:02:16]} 30. g4 {[%clk 0:00:26]}  Kg7 {[%clk 0:02:09]} 31. Kf1 {[%clk 0:00:24]}  Bc8 {[%clk 0:02:04]} 32. c4 {[%clk 0:00:19]}  f5 {[%clk 0:02:00]} 33. gxf5 {[%clk 0:00:17]}  gxf5 {[%clk 0:01:58]} 34. b4 {[%clk 0:00:17]}  bxc4 {[%clk 0:01:56]} 35. Qxc4 {[%clk 0:00:18]}  Bd7 {[%clk 0:01:51]} 36. Qc5 {[%clk 0:00:18]}  Bb5+ {[%clk 0:01:50]} 37. Kf2 {[%clk 0:00:18]}  Qf6 {[%clk 0:01:46]} 38. Qc7+ {[%clk 0:00:18]}  Kg6 {[%clk 0:01:45]} 39. Qb8 {[%clk 0:00:11]}  Qh4+ {[%clk 0:01:45]} 40. Kg2 {[%clk 0:00:10]}  e4 {[%clk 0:01:43]} 41. Qg8+ {[%clk 0:00:10]}  Kf6 {[%clk 0:01:42]} 42. Qd8+ {[%clk 0:00:10]}  Ke5 {[%clk 0:01:42]} 43. Qxh4 {[%clk 0:00:11]}  exf3+ {[%clk 0:01:43]} 44. Kxf3 {[%clk 0:00:12]}  Bc4 {[%clk 0:01:43]} 45. d6 {[%clk 0:00:11]}  Bd5+ {[%clk 0:01:44]} 46. Ke3 {[%clk 0:00:12]}  Kxd6 {[%clk 0:01:45]} 47. Kd4 {[%clk 0:00:12]}  Ke6 {[%clk 0:01:45]} 48. Qxh6+ {[%clk 0:00:12]}  Kd7 {[%clk 0:01:45]} 49. Kxd5 {[%clk 0:00:13]}  f4 {[%clk 0:01:46]} 50. Qxa6 {[%clk 0:00:14]}  f3 {[%clk 0:01:47]} 51. Qf1 {[%clk 0:00:14]}  f2 {[%clk 0:01:45]} 52. Qxf2 {[%clk 0:00:15]} 1-0


[Site "https://www.chess.com"]

[Event "Titled Tuesday Blitz July 25 Early 2023"]
[White "Makhmudov, Shukhrat"]
[Black "Rodriguez Fontecha, Marcos"]
[WhiteFideId "14200775"]
[BlackFideId "2256576"]
[WhiteElo "2331"]
[BlackElo "2470"]
[Result "1-0"]
[Round "9"]
[TimeControl "180+2"]
[Date "2023.07.25"]
[WhiteClock "0:01:22"]
[BlackClock "0:00:07"]
[Board "133"]

1. e4 {[%clk 0:03:00]}  e6 {[%clk 0:03:00]} 2. Nf3 {[%clk 0:03:00]}  d5 {[%clk 0:03:00]} 3. e5 {[%clk 0:03:01]}  c5 {[%clk 0:02:59]} 4. b4 {[%clk 0:03:02]}  b6 {[%clk 0:02:53]} 5. bxc5 {[%clk 0:03:01]}  bxc5 {[%clk 0:02:53]} 6. c3 {[%clk 0:03:00]}  Nc6 {[%clk 0:02:43]} 7. d4 {[%clk 0:02:59]}  f6 {[%clk 0:02:34]} 8. exf6 {[%clk 0:02:59]}  Nxf6 {[%clk 0:02:34]} 9. Bb5 {[%clk 0:02:59]}  Bd7 {[%clk 0:02:32]} 10. O-O {[%clk 0:02:59]}  Bd6 {[%clk 0:02:32]} 11. Re1 {[%clk 0:02:59]}  Rc8 {[%clk 0:01:39]} 12. Ba3 {[%clk 0:02:52]}  O-O {[%clk 0:01:36]} 13. Bxc5 {[%clk 0:02:48]}  Bxc5 {[%clk 0:01:35]} 14. dxc5 {[%clk 0:02:49]}  Ne4 {[%clk 0:01:33]} 15. c4 {[%clk 0:02:27]}  Ng5 {[%clk 0:00:38]} 16. Nbd2 {[%clk 0:02:09]}  Qf6 {[%clk 0:00:31]} 17. Nxg5 {[%clk 0:02:03]}  Qxg5 {[%clk 0:00:29]} 18. Nf3 {[%clk 0:02:03]}  Qh5 {[%clk 0:00:21]} 19. Bxc6 {[%clk 0:01:41]}  Bxc6 {[%clk 0:00:19]} 20. Nd4 {[%clk 0:01:22]}  dxc4 {[%clk 0:00:07]} 21. Qxh5 {[%clk 0:01:22]} 1-0


[Site "https://www.chess.com"]

[Event "Titled Tuesday Blitz July 25 Early 2023"]
[White "Perske, Thore"]
[Black "Osinovsky, Stepan"]
[WhiteFideId "12902195"]
[BlackFideId "4157354"]
[WhiteElo "2469"]
[BlackElo "2331"]
[Result "0-1"]
[Round "9"]
[TimeControl "180+2"]
[Date "2023.07.25"]
[WhiteClock "0:02:09"]
[BlackClock "0:00:51"]
[Board "134"]

1. d4 {[%clk 0:03:00]}  Nf6 {[%clk 0:02:53]} 2. g3 {[%clk 0:03:01]}  g6 {[%clk 0:02:54]} 3. Bg2 {[%clk 0:03:01]}  Bg7 {[%clk 0:02:55]} 4. e4 {[%clk 0:03:01]}  O-O {[%clk 0:02:56]} 5. Ne2 {[%clk 0:03:02]}  d6 {[%clk 0:02:56]} 6. Nbc3 {[%clk 0:03:02]}  e5 {[%clk 0:02:57]} 7. h3 {[%clk 0:03:02]}  Re8 {[%clk 0:02:53]} 8. O-O {[%clk 0:03:01]}  exd4 {[%clk 0:02:52]} 9. Nxd4 {[%clk 0:03:02]}  Nbd7 {[%clk 0:02:51]} 10. Re1 {[%clk 0:03:02]}  a5 {[%clk 0:02:49]} 11. a4 {[%clk 0:03:02]}  Nc5 {[%clk 0:02:49]} 12. g4 {[%clk 0:02:55]}  c6 {[%clk 0:02:40]} 13. Bg5 {[%clk 0:02:53]}  Qb6 {[%clk 0:02:38]} 14. b3 {[%clk 0:02:50]}  Qb4 {[%clk 0:02:13]} 15. Qd2 {[%clk 0:02:39]}  Nfxe4 {[%clk 0:01:33]} 16. Nxe4 {[%clk 0:02:36]}  Nxe4 {[%clk 0:01:32]} 17. Qxb4 {[%clk 0:02:31]}  axb4 {[%clk 0:01:32]} 18. Bxe4 {[%clk 0:02:29]}  Bxd4 {[%clk 0:01:30]} 19. Bxc6 {[%clk 0:02:29]}  Rxe1+ {[%clk 0:01:24]} 20. Rxe1 {[%clk 0:02:30]}  bxc6 {[%clk 0:01:20]} 21. Re8+ {[%clk 0:02:30]}  Kg7 {[%clk 0:01:20]} 22. Be7 {[%clk 0:02:31]}  Bb7 {[%clk 0:01:08]} 23. Rxa8 {[%clk 0:02:20]}  Bxa8 {[%clk 0:01:08]} 24. Bxd6 {[%clk 0:02:21]}  c5 {[%clk 0:01:05]} 25. Kf1 {[%clk 0:02:13]}  Be4 {[%clk 0:01:02]} 26. Ke2 {[%clk 0:02:10]}  Bxc2 {[%clk 0:01:02]} 27. a5 {[%clk 0:02:11]}  Bxb3 {[%clk 0:01:03]} 28. Kd3 {[%clk 0:02:11]}  Bxf2 {[%clk 0:00:54]} 29. a6 {[%clk 0:02:11]}  Bd5 {[%clk 0:00:53]} 30. Bb8 {[%clk 0:02:09]}  c4+ {[%clk 0:00:51]} 0-1


[Site "https://www.chess.com"]

[Event "Titled Tuesday Blitz July 25 Early 2023"]
[White "Spichkin, Alexander"]
[Black "Prydun, Andriy"]
[WhiteFideId "4144074"]
[BlackFideId "14145898"]
[WhiteElo "2467"]
[BlackElo "2322"]
[Result "0-1"]
[Round "9"]
[TimeControl "180+2"]
[Date "2023.07.25"]
[WhiteClock "0:01:08"]
[BlackClock "0:00:04"]
[Board "135"]

1. f4 {[%clk 0:03:00]}  c5 {[%clk 0:02:59]} 2. Nf3 {[%clk 0:03:00]}  Nc6 {[%clk 0:02:59]} 3. d3 {[%clk 0:02:59]}  b5 {[%clk 0:02:56]} 4. e4 {[%clk 0:02:58]}  b4 {[%clk 0:02:42]} 5. Be2 {[%clk 0:02:56]}  a5 {[%clk 0:02:28]} 6. O-O {[%clk 0:02:52]}  Ba6 {[%clk 0:01:53]} 7. Be3 {[%clk 0:02:45]}  d6 {[%clk 0:01:43]} 8. d4 {[%clk 0:02:43]}  Bxe2 {[%clk 0:01:25]} 9. Qxe2 {[%clk 0:02:39]}  cxd4 {[%clk 0:01:20]} 10. Nxd4 {[%clk 0:02:37]}  Qd7 {[%clk 0:01:09]} 11. Nd2 {[%clk 0:02:35]}  g6 {[%clk 0:00:53]} 12. Nc4 {[%clk 0:02:35]}  Bg7 {[%clk 0:00:33]} 13. Nb6 {[%clk 0:02:32]}  Nxd4 {[%clk 0:00:30]} 14. Qd3 {[%clk 0:02:19]}  Qb5 {[%clk 0:00:18]} 15. Qxb5+ {[%clk 0:01:37]}  Nxb5 {[%clk 0:00:16]} 16. Nxa8 {[%clk 0:01:36]}  Bxb2 {[%clk 0:00:17]} 17. Rab1 {[%clk 0:01:34]}  Bg7 {[%clk 0:00:05]} 18. Nc7+ {[%clk 0:01:29]}  Nxc7 {[%clk 0:00:02]} 19. Bb6 {[%clk 0:01:29]}  Kd7 {[%clk 0:00:02]} 20. Bxa5 {[%clk 0:01:21]}  Bd4+ {[%clk 0:00:02]} 21. Kh1 {[%clk 0:01:20]}  Nf6 {[%clk 0:00:03]} 22. Bxb4 {[%clk 0:01:20]}  Nxe4 {[%clk 0:00:02]} 23. c3 {[%clk 0:01:20]}  Nf2+ {[%clk 0:00:01]} 24. Rxf2 {[%clk 0:01:20]}  Bxf2 {[%clk 0:00:02]} 25. a4 {[%clk 0:01:17]}  Bc5 {[%clk 0:00:03]} 26. a5 {[%clk 0:01:17]}  Bxb4 {[%clk 0:00:02]} 27. cxb4 {[%clk 0:01:17]}  Nb5 {[%clk 0:00:03]} 28. Rc1 {[%clk 0:01:16]}  Rc8 {[%clk 0:00:04]} 29. Rf1 {[%clk 0:01:15]}  Rc4 {[%clk 0:00:03]} 30. Rb1 {[%clk 0:01:14]}  Rxf4 {[%clk 0:00:03]} 31. g3 {[%clk 0:01:14]}  Rc4 {[%clk 0:00:03]} 32. a6 {[%clk 0:01:13]}  Kc7 {[%clk 0:00:03]} 33. Ra1 {[%clk 0:01:11]}  Kb6 {[%clk 0:00:03]} 34. a7 {[%clk 0:01:12]}  Nxa7 {[%clk 0:00:04]} 35. Re1 {[%clk 0:01:11]}  e5 {[%clk 0:00:04]} 36. Rd1 {[%clk 0:01:11]}  Nb5 {[%clk 0:00:04]} 37. Rf1 {[%clk 0:01:11]}  f5 {[%clk 0:00:03]} 38. Kg2 {[%clk 0:01:11]}  Rd4 {[%clk 0:00:04]} 39. Rc1 {[%clk 0:01:09]}  Rxb4 {[%clk 0:00:04]} 40. Rc8 {[%clk 0:01:09]}  Rb2+ {[%clk 0:00:04]} 41. Kh3 {[%clk 0:01:09]}  Nd4 {[%clk 0:00:05]} 42. Rh8 {[%clk 0:01:09]}  Nf3 {[%clk 0:00:05]} 43. g4 {[%clk 0:01:09]}  f4 {[%clk 0:00:04]} 44. g5 {[%clk 0:01:09]}  Rxh2+ {[%clk 0:00:05]} 45. Kg4 {[%clk 0:01:09]}  Nd4 {[%clk 0:00:03]} 46. Rd8 {[%clk 0:01:08]}  Rg2+ {[%clk 0:00:03]} 47. Kh3 {[%clk 0:01:08]}  Rg3+ {[%clk 0:00:03]} 48. Kh4 {[%clk 0:01:08]}  Nf3# {[%clk 0:00:04]} 0-1


[Site "https://www.chess.com"]